bitfinex-derivatives/quotes_BNBF0:USTF0_20250708
["timestamp","ask_amount","ask_price","bid_price","bid_amount"]
[1751963659748,1.70011549,661.17,660.71,1.69428609]
[1751963661450,1.70011549,661.18,660.7,1.69428609]
[1751963665449,1.70011549,661.18,660.69,1.69428609]
[1751963666353,1.70011549,661.17,660.71,1.69428609]
[1751963669453,1.70011549,661.18,660.69,1.69428609]
[1751963670248,1.70011549,661.18,660.7,1.69428609]
[1751963670853,1.70011549,661.18,660.69,1.69428609]
[1751963671356,1.70011549,661.17,660.7,1.69428609]
[1751963672658,0.2632644,661.26,660.68,1.358]
[1751963694877,0.2632644,661.26,660.45,0.26328731]
[1751963697581,0.2632644,661.26,660.46,1.631]
[1751963709484,0.2632644,661.26,660.45,0.26328731]
[1751963712988,0.2632644,661.26,660.46,1.519]
[1751963717797,0.2632644,661.26,660.56,1.69342019]
[1751963717798,1.69868204,661.12,660.56,1.69342019]
[1751963719195,1.69868204,661.11,660.56,1.69342019]
[1751963719397,1.69868204,661.1,660.58,1.69342019]
[1751963721194,1.69868204,661.09,660.59,1.69342019]
[1751963721700,1.69868204,661.1,660.59,1.69342019]
[1751963722203,1.69868204,661.09,660.6,1.69342019]
[1751963724604,1.69868204,661.08,660.62,1.69342019]
[1751963725304,1.69868204,661.07,660.62,1.69342019]
[1751963725506,1.69868204,661.11,660.57,1.69342019]
[1751963726303,1.69868204,661.1,660.58,1.69342019]
[1751963729310,1.69868204,661.1,660.59,1.69342019]
[1751963730214,1.69868204,661.09,660.59,1.69342019]
[1751963732212,1.69868204,661.08,660.6,1.69342019]
[1751963732713,1.69868204,661.1,660.57,1.69342019]
[1751963732911,1.70013073,661.1,660.57,1.6948643]
[1751963733414,1.70013073,661.1,660.58,1.6948643]
[1751963734117,1.70013073,661.1,660.57,1.6948643]
[1751963734311,1.70013073,661.1,660.56,1.6948643]
[1751963735014,0.2632644,661.26,660.56,1.6948643]
[1751963735015,1.70013073,661.11,660.56,1.6948643]
[1751963735210,1.70013073,661.11,660.48,0.26329627]
[1751963735211,1.70013073,661.11,660.58,1.6948643]
[1751963735412,1.70013073,661.09,660.58,1.6948643]
[1751963736011,1.70013073,661.1,660.57,1.6948643]
[1751963736312,1.70013073,661.09,660.58,1.6948643]
[1751963740112,1.70013073,661.09,660.57,1.6948643]
[1751963742324,1.70013073,661.08,660.56,1.6948643]
[1751963742825,1.70013073,661.07,660.54,1.6948643]
[1751963744124,1.70013073,661.06,660.55,1.6948643]
[1751963745227,1.70013073,661.06,660.56,1.6948643]
[1751963745523,1.70013073,661.06,660.55,1.6948643]
[1751963745922,1.70013073,661.05,660.57,1.6948643]
[1751963749925,1.70013073,661.05,660.48,0.26329627]
[1751963749926,1.70013073,661.04,660.58,1.6948643]
[1751963751930,1.70013073,661.05,660.57,1.6948643]
[1751963752136,1.70013073,661.03,660.6,1.6948643]
[1751963755032,1.70013073,661.02,660.6,1.6948643]
[1751963755236,1.70013073,661.02,660.62,1.6948643]
[1751963757934,1.70013073,661.01,660.62,1.6948643]
[1751963758334,1.70013073,661.02,660.61,1.6948643]
[1751963759736,1.70013073,661.02,660.49,2.25789359]
[1751963759737,1.70013073,661.02,660.62,1.6948643]
[1751963760536,1.70013073,661.02,660.61,1.6948643]
[1751963761142,1.70013073,661.02,660.62,1.6948643]
[1751963761342,1.70013073,661.02,660.61,1.6948643]
[1751963761942,1.70013073,661.04,660.59,1.6948643]
[1751963762643,1.70013073,661.08,660.52,1.6948643]
[1751963764046,1.70013073,661.08,660.53,1.635]
[1751963767443,1.70013073,661.09,660.53,1.635]
[1751963768246,1.70013073,661.1,660.53,1.635]
[1751963770845,1.70013073,661.09,660.53,1.635]
[1751963772347,1.70013073,661.06,660.55,1.6948643]
[1751963772950,1.70013073,661.07,660.54,1.6948643]
[1751963773450,1.70013073,661.06,660.54,1.6948643]
[1751963775854,1.70013073,661.06,660.55,1.6948643]
[1751963777050,1.70013073,661.05,660.56,1.6948643]
[1751963777250,1.70013073,661.04,660.58,1.6948643]
[1751963780856,1.70013073,661.03,660.59,1.6948643]
[1751963782458,1.70013073,661.01,660.62,1.6948643]
[1751963782960,1.70013073,661.03,660.6,1.6948643]
[1751963784360,1.70013073,661.02,660.6,1.6948643]
[1751963784861,1.70013073,661.03,660.59,1.6948643]
[1751963785060,0.2632644,661.26,660.53,1.635]
[1751963785061,1.70013073,661.05,660.57,1.6948643]
[1751963786158,1.70013073,661.05,660.56,1.6948643]
[1751963787259,1.70013073,661.05,660.57,1.6948643]
[1751963789759,1.70013073,661.05,660.58,1.6948643]
[1751963790160,1.70013073,661.04,660.58,1.6948643]
[1751963791264,1.25094132,661.18,660.53,1.635]
[1751963791265,1.70013073,661.05,660.57,1.6948643]
[1751963791460,1.70013073,661.05,660.58,1.6948643]
[1751963791965,1.70013073,661.05,660.57,1.6948643]
[1751963793368,1.70013073,661.05,660.56,1.6948643]
[1751963793668,1.70013073,661.04,660.58,1.6948643]
[1751963795268,1.70013073,661.03,660.58,1.6948643]
[1751963795763,1.70013073,661.03,660.59,1.6948643]
[1751963797169,1.70013073,661.05,660.56,1.6948643]
[1751963797368,1.70013073,661.04,660.56,1.6948643]
[1751963797970,1.70013073,661.05,660.56,1.6948643]
[1751963798872,1.70013073,661.05,660.57,1.6948643]
[1751963800874,1.70013073,661.05,660.53,1.635]
[1751963800875,1.70013073,661.1,660.53,1.635]
[1751963802377,1.70013073,661.09,660.53,1.635]
[1751963809688,1.70013073,661.08,660.53,1.635]
[1751963809983,1.70013073,661.08,660.51,1.6948643]
[1751963810688,1.70013073,661.08,660.5,1.6948643]
[1751963810889,1.70013073,661.03,660.57,1.6948643]
[1751963811185,1.70013073,661.0,660.61,1.6948643]
[1751963811388,1.70013073,660.99,660.59,1.6948643]
[1751963811985,1.70013073,660.99,660.58,1.6948643]
[1751963812589,1.70013073,660.99,660.59,1.304]
[1751963816093,1.70013073,661.01,660.59,1.304]
[1751963816986,1.70013073,661.02,660.59,1.304]
[1751963817488,1.70013073,661.03,660.59,1.304]
[1751963819189,1.70013073,661.04,660.59,1.304]
[1751963823397,1.70013073,661.05,660.59,1.304]
[1751963825297,1.70013073,661.06,660.59,1.304]
[1751963825998,5.66227348,662.16,660.59,1.304]
[1751963825999,1.70013073,661.05,660.59,1.304]
[1751963827097,1.70013073,661.04,660.59,1.304]
[1751963828696,1.70013073,661.05,660.59,1.304]
[1751963831999,1.70013073,661.04,660.59,1.304]
[1751963833402,1.96345589,661.05,660.59,1.304]
[1751963834899,1.70013073,661.04,660.59,1.304]
[1751963837510,1.70013073,661.03,660.59,1.304]
[1751963838410,1.70013073,661.02,660.59,1.304]
[1751963838606,1.70013073,661.01,660.59,1.304]
[1751963842210,1.70013073,661.0,660.59,1.304]
[1751963842409,1.70013073,661.03,660.59,1.304]
[1751963842913,1.70013073,661.04,660.59,1.304]
[1751963844814,1.96345589,661.05,660.59,1.304]
[1751963848618,0.26332516,661.05,660.59,1.304]
[1751963848819,1.9646272,661.05,660.59,1.304]
[1751963850620,1.70130204,661.04,660.59,1.304]
[1751963852416,1.70130204,661.03,660.59,1.304]
[1751963852616,1.70130204,661.02,660.59,1.304]
[1751963852821,1.70130204,661.01,660.59,1.304]
[1751963853118,1.70130204,660.99,660.6,1.6973715]
[1751963853516,1.70130204,660.99,660.59,3.0013715]
[1751963853722,1.70130204,661.0,660.59,3.0013715]
[1751963854017,1.70130204,661.0,660.59,1.304]
[1751963854221,1.70130204,660.99,660.59,3.0013715]
[1751963854819,1.70130204,661.02,660.59,1.304]
[1751963857024,1.70130204,661.0,660.59,3.0013715]
[1751963857222,1.70130204,660.99,660.6,1.6973715]
[1751963857420,1.70130204,660.99,660.59,3.0013715]
[1751963857622,1.70130204,661.01,660.59,1.304]
[1751963859022,1.70130204,661.02,660.59,1.304]
[1751963860524,1.70130204,661.03,660.59,1.304]
[1751963860724,1.70130204,661.02,660.59,1.304]
[1751963861425,1.70130204,661.03,660.59,1.304]
[1751963863427,0.26332516,661.05,660.59,1.304]
[1751963863428,1.70130204,661.02,660.59,1.304]
[1751963865030,1.70130204,661.01,660.59,1.304]
[1751963865727,1.9646272,661.05,660.59,1.304]
[1751963868633,1.70130204,661.04,660.51,1.6973715]
[1751963870333,1.70130204,661.03,660.52,1.6973715]
[1751963871334,1.70130204,661.03,660.53,1.6973715]
[1751963872035,1.70130204,661.03,660.54,1.651]
[1751963875636,1.70130204,660.98,660.6,1.6973715]
[1751963876037,1.70130204,661.02,660.54,3.3483715]
[1751963878338,1.70130204,661.01,660.54,3.3483715]
[1751963878540,1.70130204,661.01,660.55,1.6973715]
[1751963880445,1.70130204,661.0,660.56,1.6973715]
[1751963882048,1.70225548,661.0,660.56,1.69733958]
[1751963884350,1.70225548,661.01,660.55,1.69733958]
[1751963885850,1.70225548,660.99,660.58,1.69733958]
[1751963886054,1.70225548,660.99,660.59,1.69733958]
[1751963886953,1.70225548,660.99,660.58,1.69733958]
[1751963887550,1.70225548,661.01,660.56,1.69733958]
[1751963890553,1.70225548,661.0,660.57,1.69733958]
[1751963891657,1.70225548,661.0,660.54,1.651]
[1751963891658,1.70225548,661.01,660.55,1.69733958]
[1751963893057,1.70225548,661.02,660.54,1.651]
[1751963894262,1.70225548,661.02,660.54,3.34833958]
[1751963897364,1.70225548,661.01,660.55,1.69733958]
[1751963901573,1.70225548,661.0,660.57,1.69733958]
[1751963902872,1.70225548,660.98,660.6,1.69733958]
[1751963903570,1.70225548,660.98,660.54,1.651]
[1751963903571,1.70225548,660.97,660.61,1.69733958]
[1751963904270,1.70225548,660.98,660.6,1.69733958]
[1751963904675,1.70225548,660.97,660.61,1.69733958]
[1751963904874,1.70225548,660.98,660.6,1.69733958]
[1751963905174,1.70225548,660.97,660.61,1.69733958]
[1751963905572,1.70225548,661.01,660.55,1.69733958]
[1751963906972,1.70225548,661.02,660.54,3.34833958]
[1751963909572,1.70225548,661.04,660.54,1.651]
[1751963910973,1.96558064,661.05,660.54,1.651]
[1751963915678,1.70225548,661.03,660.54,1.651]
[1751963916075,0.26332516,661.05,660.54,1.651]
[1751963918780,1.96558064,661.05,660.54,1.651]
[1751963919381,1.70225548,661.04,660.54,1.651]
[1751963921175,1.70225548,661.04,660.51,1.69733958]
[1751963923480,1.70225548,661.03,660.52,3.02933958]
[1751963924580,1.70225548,661.04,660.52,3.02933958]
[1751963924981,1.70225548,661.03,660.52,3.02933958]
[1751963925779,1.70225548,661.04,660.52,3.02933958]
[1751963925982,1.70225548,661.0,660.57,1.69733958]
[1751963928083,1.70225548,661.04,660.52,3.02933958]
[1751963928788,1.70225548,661.03,660.52,3.02933958]
[1751963929683,1.70228858,661.03,660.52,3.02936608]
[1751963930284,1.70228858,661.04,660.53,1.69736608]
[1751963932185,1.70228858,661.04,660.52,3.02936608]
[1751963932583,1.96561374,661.05,660.52,1.332]
[1751963933190,1.70228858,661.04,660.52,3.02936608]
[1751963933789,1.70228858,661.04,660.53,1.69736608]
[1751963934493,1.70228858,661.03,660.53,1.69736608]
[1751963937997,1.70228858,661.01,660.57,1.69736608]
[1751963941398,0.26332516,661.05,660.52,1.332]
[1751963945493,0.26332516,661.05,660.41,0.26333014]
[1751963947393,0.26332516,661.05,660.34,0.26335505]
[1751963947994,0.26332516,661.05,660.35,1.321]
[1751963995039,1.70129535,661.04,660.55,1.69670198]
[1751963995338,1.70129535,661.04,660.54,1.69670198]
[1751963995539,1.70129535,661.04,660.55,1.69670198]
[1751963996735,1.96462051,661.05,660.53,1.69670198]
[1751963997935,0.26332516,661.05,660.46,1.69670198]
[1751963999141,0.26332516,661.05,660.47,1.69670198]
[1751964003239,0.26332516,661.05,660.46,1.69670198]
[1751964006345,0.26332516,661.05,660.47,1.264]
[1751964007844,0.26332516,661.05,660.51,1.69670198]
[1751964008046,0.26332516,661.05,660.5,1.69670198]
[1751964008246,1.70129535,661.1,660.48,1.69670198]
[1751964008445,1.70129535,661.19,660.56,1.69670198]
[1751964009545,1.70129535,661.2,660.56,1.69670198]
[1751964009946,1.70129535,661.19,660.57,1.69670198]
[1751964010547,1.70129535,661.2,660.56,1.69670198]
[1751964011349,1.70129535,661.18,660.59,1.69670198]
[1751964011552,1.96459461,661.23,660.62,1.69670198]
[1751964012055,0.26329926,661.23,660.61,1.69670198]
[1751964012451,0.26329926,661.23,660.6,1.69670198]
[1751964014657,0.26329926,661.23,660.59,1.69670198]
[1751964015055,0.26329926,661.23,660.6,1.69670198]
[1751964018359,0.26329926,661.23,660.61,1.69670198]
[1751964019662,0.26329926,661.23,660.6,1.69670198]
[1751964021266,0.26329926,661.23,660.62,1.69670198]
[1751964021563,0.26329926,661.23,660.61,1.69670198]
[1751964021967,0.26329926,661.23,660.63,1.69670198]
[1751964025968,0.26329926,661.23,660.6,1.69670198]
[1751964027073,0.26329926,661.23,660.57,1.69670198]
[1751964027774,0.26329926,661.23,660.5,1.69670198]
[1751964027973,0.26329926,661.23,660.51,1.69670198]
[1751964028571,0.26329926,661.23,660.56,1.69670198]
[1751964031471,0.26329926,661.23,660.6,1.69670198]
[1751964032274,0.26329926,661.23,660.62,1.69670198]
[1751964035374,0.26329926,661.23,660.64,1.69670198]
[1751964037085,0.26329926,661.23,660.63,1.69670198]
[1751964037684,0.26329926,661.23,660.64,1.69670198]
[1751964038581,0.26329926,661.23,660.63,1.69670198]
[1751964044292,0.26329926,661.23,660.64,1.69670198]
[1751964046989,0.26329926,661.23,660.63,1.69670198]
[1751964047789,0.26329926,661.23,660.61,1.69670198]
[1751964048493,0.26329926,661.23,660.47,1.264]
[1751964048494,0.26329926,661.23,660.62,1.69670198]
[1751964049292,0.26329926,661.23,660.63,1.69670198]
[1751964050296,0.26329926,661.23,660.61,1.69670198]
[1751964051995,0.26329926,661.23,660.6,1.69670198]
[1751964053700,0.26329926,661.23,660.47,2.96070198]
[1751964053897,0.26329926,661.23,660.47,1.264]
[1751964054496,0.26329926,661.23,660.44,1.69670198]
[1751964056300,0.26329926,661.23,660.45,1.69670198]
[1751964056996,0.26329926,661.23,660.44,1.69670198]
[1751964057199,0.26329926,661.23,660.46,1.58]
[1751964063405,1.96459461,661.23,660.54,1.69670198]
[1751964064000,1.96459461,661.23,660.46,1.58]
[1751964064001,1.70129535,661.22,660.55,1.69670198]
[1751964064606,1.70129535,661.21,660.56,1.69670198]
[1751964065402,1.70129535,661.21,660.57,1.69670198]
[1751964066708,1.70129535,661.16,660.63,1.69670198]
[1751964066909,1.70129535,661.12,660.59,1.69670198]
[1751964067609,1.70129535,661.11,660.59,1.69670198]
[1751964067809,1.70129535,661.1,660.61,1.69670198]
[1751964068110,1.70129535,661.11,660.6,1.69670198]
[1751964068508,1.70129535,661.11,660.61,1.69670198]
[1751964068707,1.70129535,661.1,660.61,1.69670198]
[1751964069208,1.70129535,661.11,660.61,1.69670198]
[1751964069408,1.70129535,661.1,660.61,1.69670198]
[1751964070108,1.70129535,661.11,660.61,1.69670198]
[1751964070810,1.70129535,661.12,660.58,1.69670198]
[1751964071814,1.70129535,661.12,660.59,1.493]
[1751964072011,1.70129535,661.15,660.59,1.493]
[1751964073211,1.70129535,661.16,660.59,1.493]
[1751964074214,1.70129535,661.17,660.59,1.493]
[1751964077219,1.70129535,661.18,660.59,1.493]
[1751964081320,0.26329926,661.23,660.59,1.493]
[1751964081516,1.69790169,661.18,660.59,1.493]
[1751964081920,1.69790169,661.12,660.59,1.493]
[1751964082417,1.69790169,661.13,660.59,1.493]
[1751964082622,1.69790169,661.12,660.59,1.493]
[1751964083119,1.69790169,661.14,660.59,1.493]
[1751964087125,1.69790169,661.15,660.59,1.493]
[1751964090128,0.26329926,661.23,660.59,1.493]
[1751964090529,1.69696423,661.15,660.59,1.493]
[1751964090728,0.26329926,661.23,660.59,1.493]
[1751964090924,1.69696423,661.15,660.59,1.493]
[1751964093035,1.69696423,661.11,660.59,1.493]
[1751964093332,1.69696423,661.09,660.59,1.493]
[1751964095735,2.2556061,661.22,660.59,1.493]
[1751964095936,1.69674916,661.09,660.59,1.493]
[1751964098934,1.69674916,661.08,660.59,1.493]
[1751964100540,1.69674916,661.09,660.59,1.493]
[1751964100940,1.00833829,661.19,660.59,1.493]
[1751964101140,1.69678548,661.09,660.59,1.493]
[1751964101741,1.69678548,661.08,660.59,1.493]
[1751964101938,1.69678548,661.1,660.59,1.493]
[1751964103141,1.69678548,661.16,660.59,1.493]
[1751964103544,1.69678548,661.15,660.59,1.493]
[1751964105342,1.69678548,661.14,660.59,1.493]
[1751964105539,1.69678548,661.15,660.59,1.493]
[1751964105738,1.69706355,661.15,660.59,1.493]
[1751964108442,1.69706355,661.14,660.59,1.493]
[1751964109946,1.69706355,661.14,660.34,1.69274561]
[1751964110545,1.69706355,661.13,660.34,1.69274561]
[1751964111844,1.69706355,661.13,660.35,1.69274561]
[1751964112248,1.69706355,661.13,660.36,1.69274561]
[1751964112650,1.69706355,661.13,660.37,1.537]
[1751964113251,1.69706355,661.07,660.45,1.69274561]
[1751964113650,1.69706355,661.06,660.45,1.69274561]
[1751964115555,1.69706355,661.06,660.46,1.69274561]
[1751964116954,1.69706355,661.08,660.42,1.69274561]
[1751964117356,1.69706355,661.08,660.43,1.69274561]
[1751964117754,1.69706355,661.14,660.37,1.537]
[1751964118353,1.69706355,661.13,660.37,1.537]
[1751964122360,1.69706355,661.12,660.37,1.537]
[1751964124260,1.69706355,661.11,660.37,3.22974561]
[1751964124658,1.69706355,661.1,660.39,1.69274561]
[1751964125061,1.69706355,661.09,660.39,1.69274561]
[1751964126262,1.69706355,661.08,660.4,1.69274561]
[1751964126861,1.69706355,661.08,660.41,1.69274561]
[1751964127664,1.69706355,661.01,660.51,1.69274561]
[1751964128165,1.69706355,661.0,660.52,1.69274561]
[1751964129264,1.69706355,661.0,660.53,1.69274561]
[1751964129468,1.69706355,661.0,660.52,1.69274561]
[1751964130267,1.69706355,661.0,660.38,2.25656256]
[1751964130268,1.69706355,660.99,660.53,1.69274561]
[1751964131765,1.00927927,661.11,660.39,2.25656256]
[1751964131968,1.7013675,660.99,660.54,1.69686027]
[1751964133864,1.7013675,660.98,660.54,1.69686027]
[1751964134664,1.7013675,660.99,660.49,1.69686027]
[1751964136866,1.7013675,660.99,660.37,1.537]
[1751964136867,1.7013675,660.97,660.51,1.69686027]
[1751964137070,1.7013675,660.94,660.48,1.69686027]
[1751964138771,1.7013675,660.94,660.47,1.69686027]
[1751964139065,1.7013675,660.94,660.48,1.69686027]
[1751964139471,1.7013675,660.94,660.47,1.69686027]
[1751964139766,1.7013675,660.95,660.47,1.69686027]
[1751964141570,1.7013675,660.95,660.46,1.69686027]
[1751964143368,1.7013675,660.95,660.47,1.368]
[1751964144169,1.7013675,660.96,660.47,1.368]
[1751964146277,1.7013675,660.97,660.47,1.368]
[1751964146875,1.7013675,660.96,660.47,1.368]
[1751964147074,1.7013675,660.98,660.47,1.368]
[1751964154173,1.7013675,660.97,660.47,1.368]
[1751964154775,1.7013675,660.98,660.47,1.368]
[1751964156881,1.7013675,660.97,660.47,1.368]
[1751964157284,1.7013675,660.98,660.47,1.368]
[1751964158384,1.7013675,660.97,660.47,1.368]
[1751964160187,1.01026873,661.1,660.47,1.368]
[1751964160486,1.70048862,660.97,660.47,1.368]
[1751964161586,1.70048862,660.98,660.47,1.368]
[1751964164696,1.70048862,660.97,660.47,1.368]
[1751964164993,1.70048862,660.96,660.47,1.368]
[1751964165694,1.70048862,660.96,660.47,3.06394674]
[1751964166192,1.70048862,661.0,660.47,1.368]
[1751964169997,1.70048862,661.01,660.47,1.368]
[1751964171397,1.70048862,661.0,660.47,1.368]
[1751964174200,1.70048862,661.02,660.47,1.368]
[1751964174702,1.7006558,661.02,660.47,1.368]
[1751964176103,1.7006558,661.01,660.47,1.368]
[1751964177006,1.7006558,661.0,660.47,1.368]
[1751964177807,1.7006558,660.99,660.47,1.368]
[1751964179205,1.7006558,661.0,660.47,1.368]
[1751964179604,1.7006558,661.04,660.47,1.368]
[1751964179803,1.7006558,661.02,660.47,1.368]
[1751964180810,1.7006558,661.01,660.47,1.368]
[1751964182606,1.7006558,661.02,660.47,1.368]
[1751964183609,1.7006558,660.95,660.47,1.368]
[1751964183805,0.26329926,661.23,660.47,1.368]
[1751964183806,1.7006558,660.86,660.47,1.368]
[1751964184206,1.7006558,660.87,660.47,1.368]
[1751964185012,1.7006558,660.89,660.47,1.368]
[1751964185312,1.7006558,660.9,660.47,1.368]
[1751964186509,1.7006558,660.91,660.47,1.368]
[1751964187909,1.7006558,660.89,660.23,1.69611345]
[1751964188110,1.7006558,660.89,660.24,1.69611345]
[1751964188412,1.7006558,660.89,660.23,1.69611345]
[1751964188609,1.7006558,660.85,660.29,1.69611345]
[1751964188813,1.7006558,660.87,660.26,1.69611345]
[1751964189310,1.7006558,660.88,660.26,1.69611345]
[1751964189514,1.7006558,660.9,660.22,1.69611345]
[1751964190213,1.7006558,660.93,660.25,1.69611345]
[1751964190414,1.7006558,660.92,660.27,1.69611345]
[1751964190610,1.7006558,660.88,660.32,1.69611345]
[1751964191110,1.7006558,660.88,660.31,1.69611345]
[1751964191811,1.7006558,660.86,660.35,1.69611345]
[1751964192012,1.7006558,660.88,660.32,3.14711345]
[1751964193411,1.7006558,660.88,660.32,1.451]
[1751964194115,1.7006558,660.89,660.32,1.451]
[1751964194815,1.7006558,660.95,660.32,1.451]
[1751964198414,1.7006558,660.9,660.35,1.69611345]
[1751964198612,1.7006558,660.89,660.36,1.69611345]
[1751964199518,1.7006558,660.9,660.36,1.69611345]
[1751964199818,5.65654746,661.67,660.32,1.451]
[1751964199819,1.7006558,660.88,660.38,1.69611345]
[1751964201519,1.7006558,660.93,660.32,1.451]
[1751964201719,1.7006558,660.94,660.32,1.451]
[1751964203921,1.7006558,660.95,660.32,1.451]
[1751964205523,1.7006558,660.96,660.32,1.451]
[1751964205823,1.7006558,660.97,660.32,1.451]
[1751964207024,1.7006558,660.98,660.32,1.451]
[1751964208722,0.26337997,660.97,660.32,1.451]
[1751964211230,1.96403577,660.97,660.32,1.451]
[1751964213832,1.7006558,660.96,660.32,1.451]
[1751964215833,1.7006558,660.95,660.32,1.451]
[1751964216837,1.7006558,660.94,660.32,1.451]
[1751964218035,1.7006558,660.93,660.32,3.14711345]
[1751964218538,1.7006558,660.93,660.33,1.69611345]
[1751964219233,0.26337997,660.97,660.32,1.451]
[1751964219234,1.7006558,660.92,660.35,1.69611345]
[1751964219533,1.7006558,660.91,660.35,1.69611345]
[1751964219734,1.7006558,660.9,660.36,1.69611345]
[1751964220134,1.7006558,660.94,660.32,1.451]
[1751964220335,1.7006558,660.95,660.32,3.14711345]
[1751964220540,1.7006558,660.96,660.34,1.69611345]
[1751964221836,1.7006558,660.96,660.35,1.69611345]
[1751964222142,1.96403577,660.97,660.34,1.69611345]
[1751964222339,1.7006558,660.96,660.34,1.69611345]
[1751964227648,1.96403577,660.97,660.33,1.69611345]
[1751964229054,1.96403577,660.97,660.32,3.14711345]
[1751964229454,1.96403577,660.97,660.33,1.69611345]
[1751964229957,1.7006558,660.95,660.35,1.69611345]
[1751964230152,1.7006558,660.95,660.36,1.69611345]
[1751964230651,1.7006558,660.94,660.36,1.69611345]
[1751964231753,1.7006558,660.93,660.38,1.69611345]
[1751964231953,1.7006558,660.95,660.36,1.69611345]
[1751964232253,1.7006558,660.95,660.35,1.69611345]
[1751964232556,1.7006558,660.95,660.36,1.69611345]
[1751964233556,1.7006558,660.94,660.36,1.69611345]
[1751964235261,1.7006558,660.94,660.37,1.69611345]
[1751964237261,0.26337997,660.97,660.32,1.451]
[1751964237557,0.26337997,660.97,660.39,1.69484802]
[1751964237558,1.70027807,660.92,660.39,1.69484802]
[1751964238558,1.70027807,660.92,660.4,1.69484802]
[1751964238960,1.70027807,660.92,660.39,1.69484802]
[1751964241966,1.70027807,660.9,660.42,1.69484802]
[1751964243965,1.70027807,660.9,660.42,1.69484802]
[1751964244564,1.70027807,660.91,660.4,1.69484802]
[1751964245163,1.70027807,660.92,660.39,1.69484802]
[1751964245467,1.70027807,660.92,660.38,1.69484802]
[1751964245664,1.70027807,660.92,660.4,1.288]
[1751964245863,1.70027807,660.89,660.4,1.288]
[1751964246868,1.70027807,660.9,660.4,1.288]
[1751964247670,1.70027807,660.92,660.4,1.288]
[1751964250571,1.70027807,660.89,660.4,1.288]
[1751964252569,1.70027807,660.88,660.4,1.288]
[1751964255372,1.70027807,660.87,660.4,1.288]
[1751964255574,1.70027807,660.86,660.4,1.288]
[1751964256572,1.70027807,660.91,660.4,1.288]
[1751964256772,1.70027807,660.9,660.4,1.288]
[1751964257276,1.70027807,660.88,660.4,1.288]
[1751964257772,1.70027807,660.88,660.26,1.69484802]
[1751964258172,1.70027807,660.89,660.25,1.69484802]
[1751964259875,1.70027807,660.89,660.24,1.69484802]
[1751964260079,1.70027807,660.91,660.22,1.69484802]
[1751964260674,1.70027807,660.91,660.23,1.426]
[1751964261180,1.70027807,660.9,660.23,1.426]
[1751964262479,1.70101862,660.9,660.23,1.426]
[1751964263382,1.70101862,660.91,660.23,1.426]
[1751964265077,1.70101862,660.89,660.23,1.426]
[1751964267984,1.70101862,660.88,660.23,1.426]
[1751964269684,1.70101862,660.88,660.23,3.12270715]
[1751964269881,1.70101862,660.86,660.26,1.69670715]
[1751964270080,1.70101862,660.85,660.27,1.69670715]
[1751964270781,1.70101862,660.86,660.26,1.69670715]
[1751964271884,1.70101862,660.86,660.23,1.426]
[1751964271885,1.70101862,660.85,660.27,1.69670715]
[1751964272381,1.70101862,660.86,660.27,1.69670715]
[1751964273584,0.26337997,660.97,660.23,1.426]
[1751964273887,1.70006613,660.86,660.27,1.69580321]
[1751964274188,1.70006613,660.85,660.27,1.69580321]
[1751964274383,1.70006613,660.84,660.29,1.69580321]
[1751964276388,0.26337997,660.97,660.23,1.426]
[1751964276389,1.70006613,660.85,660.28,1.69580321]
[1751964277189,1.70006613,660.86,660.26,1.69580321]
[1751964279686,1.70006613,660.86,660.27,1.265]
[1751964280093,1.70006613,660.86,660.27,2.96080321]
[1751964280789,1.70006613,660.85,660.28,1.69580321]
[1751964285502,1.70006613,660.86,660.27,2.96080321]
[1751964286398,1.70006613,660.85,660.27,2.96080321]
[1751964286799,1.70006613,660.84,660.3,1.69580321]
[1751964288602,1.70006613,660.83,660.3,1.69580321]
[1751964289105,1.70006613,660.83,660.27,1.265]
[1751964289106,1.70006613,660.83,660.31,1.69580321]
[1751964289304,1.70006613,660.83,660.3,1.69580321]
[1751964291609,1.70006613,660.83,660.31,1.69580321]
[1751964291909,1.70006613,660.83,660.3,1.69580321]
[1751964292708,1.70006613,660.83,660.31,1.69580321]
[1751964295308,1.70006613,660.82,660.31,1.69580321]
[1751964295609,1.70006613,660.81,660.33,1.69580321]
[1751964297314,1.70006613,660.81,660.34,1.69580321]
[1751964297915,1.70006613,660.81,660.33,1.69580321]
[1751964298321,1.70006613,660.81,660.34,1.69580321]
[1751964299017,1.70006613,660.79,660.36,1.69580321]
[1751964300016,1.70006613,660.82,660.31,1.69580321]
[1751964301111,1.70006613,660.82,660.32,1.69580321]
[1751964302017,1.70006613,660.83,660.31,1.69580321]